[Event "Early-Titled-Tuesday-Blitz-September-05-2023"]
[Site "Chess.com"]
[Date "2023.09.05"]
[Round "3"]
[White "Byniolus"]
[Black "Journey_to_GrandMaster_YT"]
[Result "0-1"]
[WhiteElo "2825"]
[BlackElo "2616"]
[TimeControl "180+1"]
[EndTime "8:28:06 PDT"]
[Termination "Journey_to_GrandMaster_YT won on time"]

1. d4 {[%clk 0:02:28.4]} 1... d6 {[%clk 0:03:00.9]} 2. Nf3 {[%clk 0:02:28.3]}
2... Nf6 {[%clk 0:03:00.8]} 3. Bf4 {[%clk 0:02:28.6]} 3... Nbd7 {[%clk
0:02:59.5]} 4. h3 {[%clk 0:02:28.6]} 4... g6 {[%clk 0:02:59.6]} 5. e3 {[%clk
0:02:28.6]} 5... Bg7 {[%clk 0:03:00.2]} 6. Be2 {[%clk 0:02:28.9]} 6... O-O
{[%clk 0:03:00.8]} 7. O-O {[%clk 0:02:28.9]} 7... b6 {[%clk 0:03:00.9]} 8. c3
{[%clk 0:02:29]} 8... Bb7 {[%clk 0:03:01.4]} 9. Nbd2 {[%clk 0:02:29.9]} 9... e6
{[%clk 0:02:59.9]} 10. a4 {[%clk 0:02:28.9]} 10... a6 {[%clk 0:02:59.9]} 11. Bh2
{[%clk 0:02:29.6]} 11... Qe7 {[%clk 0:03:00.1]} 12. Qb3 {[%clk 0:02:29.2]} 12...
Rab8 {[%clk 0:02:48.5]} 13. Rfd1 {[%clk 0:02:23.3]} 13... e5 {[%clk 0:02:48.1]}
14. Rac1 {[%clk 0:02:20.8]} 14... Rfe8 {[%clk 0:02:43.8]} 15. Qa3 {[%clk
0:02:17.9]} 15... a5 {[%clk 0:02:39.8]} 16. Bb5 {[%clk 0:02:14.6]} 16... Rbd8
{[%clk 0:02:28.6]} 17. b4 {[%clk 0:01:37.8]} 17... Ne4 {[%clk 0:02:17.3]} 18.
bxa5 {[%clk 0:01:33.2]} 18... bxa5 {[%clk 0:02:14.7]} 19. Nc4 {[%clk 0:01:07.2]}
19... Ng5 {[%clk 0:01:58.8]} 20. Nxg5 {[%clk 0:01:00.5]} 20... Qxg5 {[%clk
0:01:56.7]} 21. d5 {[%clk 0:01:01.4]} 21... e4 {[%clk 0:01:44.7]} 22. Nxa5
{[%clk 0:00:59.5]} 22... Bxd5 {[%clk 0:01:44.7]} 23. Nc6 {[%clk 0:00:47.7]}
23... Ra8 {[%clk 0:01:24.1]} 24. c4 {[%clk 0:00:43.4]} 24... Be6 {[%clk
0:01:18.9]} 25. Nd4 {[%clk 0:00:41.7]} 25... Re7 {[%clk 0:01:09.7]} 26. Nxe6
{[%clk 0:00:38.5]} 26... fxe6 {[%clk 0:01:09.5]} 27. Bc6 {[%clk 0:00:34.7]}
27... Ra5 {[%clk 0:01:05]} 28. Bxe4 {[%clk 0:00:32.9]} 28... Nc5 {[%clk
0:01:02.4]} 29. Bc6 {[%clk 0:00:30.1]} 29... Rf7 {[%clk 0:01:00.1]} 30. Bg3
{[%clk 0:00:22.8]} 30... Be5 {[%clk 0:00:39.8]} 31. Bxe5 {[%clk 0:00:20.4]}
31... Qxe5 {[%clk 0:00:40.7]} 32. Rb1 {[%clk 0:00:17.9]} 32... Rf8 {[%clk
0:00:37.9]} 33. Qb4 {[%clk 0:00:14.9]} 33... Ra7 {[%clk 0:00:30.4]} 34. a5
{[%clk 0:00:12.4]} 34... Qf5 {[%clk 0:00:27.9]} 35. Rf1 {[%clk 0:00:11.3]} 35...
Nd3 {[%clk 0:00:27.6]} 36. Qd2 {[%clk 0:00:08.6]} 36... Ne5 {[%clk 0:00:18.6]}
37. Bb5 {[%clk 0:00:02.4]} 37... c6 {[%clk 0:00:16.5]} 38. Qxd6 {[%clk
0:00:02.5]} 38... cxb5 {[%clk 0:00:15.7]} 39. Rxb5 {[%clk 0:00:03.1]} 39... Nxc4
{[%clk 0:00:11.4]} 40. Qb4 {[%clk 0:00:03.3]} 40... Qd3 {[%clk 0:00:10.3]} 41.
Rc5 {[%clk 0:00:01.5]} 41... Nd2 {[%clk 0:00:08.2]} 42. Re1 {[%clk 0:00:01.1]}
42... Rfa8 {[%clk 0:00:06.7]} 43. Rc3 {[%clk 0:00:01.1]} 43... Qd7 {[%clk
0:00:06.1]} 0-1

[Event "Early-Titled-Tuesday-Blitz-September-05-2023"]
[Site "Chess.com"]
[Date "2023.09.05"]
[Round "3"]
[White "MITerryble"]
[Black "Trendle"]
[Result "1-0"]
[WhiteElo "2928"]
[BlackElo "2711"]
[TimeControl "180+1"]
[EndTime "8:28:09 PDT"]
[Termination "MITerryble won by resignation"]

1. e4 {[%clk 0:03:00]} 1... e6 {[%clk 0:02:59.9]} 2. d4 {[%clk 0:02:59.1]} 2...
d5 {[%clk 0:03:00.5]} 3. exd5 {[%clk 0:03:00]} 3... exd5 {[%clk 0:03:00.6]} 4.
Nf3 {[%clk 0:03:00.7]} 4... Bd6 {[%clk 0:03:00.4]} 5. c4 {[%clk 0:03:00.9]} 5...
c6 {[%clk 0:03:00.5]} 6. Nc3 {[%clk 0:03:01.1]} 6... Ne7 {[%clk 0:03:00.5]} 7.
Bd3 {[%clk 0:03:00]} 7... dxc4 {[%clk 0:03:00]} 8. Bxc4 {[%clk 0:03:00.3]} 8...
O-O {[%clk 0:03:00.1]} 9. O-O {[%clk 0:03:00.8]} 9... Nd7 {[%clk 0:03:00.5]} 10.
Re1 {[%clk 0:02:59.9]} 10... Nb6 {[%clk 0:03:00.5]} 11. Bb3 {[%clk 0:03:00.3]}
11... Nbd5 {[%clk 0:02:57.6]} 12. Bd2 {[%clk 0:02:53.6]} 12... Bg4 {[%clk
0:02:52.7]} 13. h3 {[%clk 0:02:53.5]} 13... Bh5 {[%clk 0:02:52.8]} 14. g4 {[%clk
0:02:53.8]} 14... Bg6 {[%clk 0:02:52.9]} 15. Ne5 {[%clk 0:02:54]} 15... Nxc3
{[%clk 0:02:43.1]} 16. bxc3 {[%clk 0:02:52.9]} 16... Nd5 {[%clk 0:02:38.2]} 17.
Qf3 {[%clk 0:02:43.6]} 17... Qh4 {[%clk 0:02:32]} 18. Kg2 {[%clk 0:02:36.3]}
18... Kh8 {[%clk 0:02:20.2]} 19. Bxd5 {[%clk 0:02:22.8]} 19... cxd5 {[%clk
0:02:20.1]} 20. Qxd5 {[%clk 0:02:23.7]} 20... Bxe5 {[%clk 0:02:14.1]} 21. Rxe5
{[%clk 0:02:20.1]} 21... f6 {[%clk 0:01:56.2]} 22. Re7 {[%clk 0:02:20.1]} 22...
Rad8 {[%clk 0:01:46.6]} 23. Qe6 {[%clk 0:02:06.5]} 23... h6 {[%clk 0:01:18]} 24.
Re1 {[%clk 0:02:00.8]} 24... Bh7 {[%clk 0:01:16.3]} 25. Qe3 {[%clk 0:01:33.6]}
25... Bg8 {[%clk 0:01:12.4]} 26. Qg3 {[%clk 0:01:30.3]} 26... Bd5+ {[%clk
0:01:05]} 27. Kh2 {[%clk 0:01:29.7]} 27... Qxg3+ {[%clk 0:01:05.1]} 28. Kxg3
{[%clk 0:01:30.6]} 28... a6 {[%clk 0:00:57.5]} 29. a4 {[%clk 0:01:23.3]} 29...
Rc8 {[%clk 0:00:57.9]} 30. a5 {[%clk 0:01:21.2]} 30... Rc4 {[%clk 0:00:55]} 31.
Rd7 {[%clk 0:01:21.4]} 31... Bc6 {[%clk 0:00:51]} 32. Rc7 {[%clk 0:01:19]} 32...
Bd5 {[%clk 0:00:50.4]} 33. Rxc4 {[%clk 0:01:17.2]} 33... Bxc4 {[%clk 0:00:51.3]}
34. Re7 {[%clk 0:01:17.9]} 34... Rf7 {[%clk 0:00:50.7]} 35. Re8+ {[%clk
0:01:14.7]} 35... Kh7 {[%clk 0:00:51.3]} 36. Bf4 {[%clk 0:01:01.3]} 36... f5
{[%clk 0:00:49]} 37. Be5 {[%clk 0:00:57.7]} 37... fxg4 {[%clk 0:00:48.3]} 38.
hxg4 {[%clk 0:00:58.6]} 38... Bd5 {[%clk 0:00:46.7]} 39. f4 {[%clk 0:00:58.3]}
39... Bc6 {[%clk 0:00:39.1]} 40. Rd8 {[%clk 0:00:56.7]} 40... Rd7 {[%clk
0:00:38.6]} 41. Rc8 {[%clk 0:00:57.2]} 41... Be4 {[%clk 0:00:32.7]} 42. c4
{[%clk 0:00:53]} 42... Kg6 {[%clk 0:00:31]} 43. Rf8 {[%clk 0:00:46.1]} 43... Bd3
{[%clk 0:00:29.4]} 44. f5+ {[%clk 0:00:45.8]} 44... Kh7 {[%clk 0:00:28.2]} 45.
Rc8 {[%clk 0:00:42.1]} 45... h5 {[%clk 0:00:28.5]} 46. gxh5 {[%clk 0:00:39.6]}
46... Bxf5 {[%clk 0:00:28.1]} 47. d5 {[%clk 0:00:38.6]} 47... Be4 {[%clk
0:00:24.2]} 48. Kf4 {[%clk 0:00:30.3]} 48... Bd3 {[%clk 0:00:24.4]} 49. d6
{[%clk 0:00:24.2]} 49... Rf7+ {[%clk 0:00:21.2]} 50. Ke3 {[%clk 0:00:23.4]}
50... Bf5 {[%clk 0:00:21]} 51. Rc7 {[%clk 0:00:19.5]} 51... Rxc7 {[%clk
0:00:18.4]} 52. dxc7 {[%clk 0:00:20.4]} 52... Kh6 {[%clk 0:00:16.3]} 53. Kd4
{[%clk 0:00:20.5]} 53... Kxh5 {[%clk 0:00:16]} 54. Kc5 {[%clk 0:00:20.2]} 54...
Kg6 {[%clk 0:00:11]} 55. Kb6 {[%clk 0:00:20.5]} 55... Bc8 {[%clk 0:00:09.9]} 56.
Ka7 {[%clk 0:00:21]} 56... Kf5 {[%clk 0:00:10.4]} 57. Kb8 {[%clk 0:00:20.9]}
57... Bd7 {[%clk 0:00:07.2]} 58. Bxg7 {[%clk 0:00:20.8]} 1-0

[Event "Early-Titled-Tuesday-Blitz-September-05-2023"]
[Site "Chess.com"]
[Date "2023.09.05"]
[Round "3"]
[White "aghasiyevkamal"]
[Black "H_E_D_G_E_H_O_G"]
[Result "1-0"]
[WhiteElo "2527"]
[BlackElo "2049"]
[TimeControl "180+1"]
[EndTime "8:28:09 PDT"]
[Termination "aghasiyevkamal won on time"]

1. e4 {[%clk 0:02:59.1]} 1... e6 {[%clk 0:02:59.9]} 2. d4 {[%clk 0:02:58.1]}
2... d5 {[%clk 0:03:00.3]} 3. Nc3 {[%clk 0:02:57.2]} 3... Nc6 {[%clk 0:02:59.9]}
4. Nf3 {[%clk 0:02:55.6]} 4... Nf6 {[%clk 0:03:00.1]} 5. e5 {[%clk 0:02:50.7]}
5... Ne4 {[%clk 0:03:00.2]} 6. Bd3 {[%clk 0:02:37.7]} 6... Bb4 {[%clk
0:02:59.6]} 7. Bd2 {[%clk 0:02:33.5]} 7... Bxc3 {[%clk 0:02:59.4]} 8. Bxc3
{[%clk 0:02:29.8]} 8... b6 {[%clk 0:02:45.2]} 9. O-O {[%clk 0:02:25]} 9... Bb7
{[%clk 0:02:44.3]} 10. Bd2 {[%clk 0:02:04.7]} 10... Nxd2 {[%clk 0:02:17.9]} 11.
Qxd2 {[%clk 0:02:03.9]} 11... Qe7 {[%clk 0:02:12.4]} 12. Rfe1 {[%clk 0:01:59.7]}
12... h6 {[%clk 0:02:04.9]} 13. Rac1 {[%clk 0:01:45.5]} 13... Na5 {[%clk
0:01:55.4]} 14. b3 {[%clk 0:01:22.2]} 14... c5 {[%clk 0:01:46.1]} 15. dxc5
{[%clk 0:01:14]} 15... O-O {[%clk 0:01:37.4]} 16. cxb6 {[%clk 0:01:07.3]} 16...
axb6 {[%clk 0:01:35.4]} 17. Nd4 {[%clk 0:00:54]} 17... Nc6 {[%clk 0:01:26.4]}
18. Nxc6 {[%clk 0:00:50.2]} 18... Bxc6 {[%clk 0:01:27.3]} 19. Re3 {[%clk
0:00:49.9]} 19... Rxa2 {[%clk 0:01:09.3]} 20. Rg3 {[%clk 0:00:49.4]} 20... Kh8
{[%clk 0:01:08.2]} 21. Re1 {[%clk 0:00:40.7]} 21... f5 {[%clk 0:01:04.3]} 22.
exf6 {[%clk 0:00:37]} 22... Qxf6 {[%clk 0:01:03.7]} 23. Rf3 {[%clk 0:00:36.2]}
23... Qe7 {[%clk 0:01:03.3]} 24. Rxf8+ {[%clk 0:00:34.8]} 24... Qxf8 {[%clk
0:01:04.2]} 25. Rxe6 {[%clk 0:00:35.1]} 25... Ra1+ {[%clk 0:00:47.9]} 26. Re1
{[%clk 0:00:33.8]} 26... Qf6 {[%clk 0:00:44.1]} 27. h3 {[%clk 0:00:28.8]} 27...
Kg8 {[%clk 0:00:30.8]} 28. Qe3 {[%clk 0:00:25.4]} 28... Rxe1+ {[%clk 0:00:28.2]}
29. Qxe1 {[%clk 0:00:26.3]} 29... d4 {[%clk 0:00:25.2]} 30. Qb4 {[%clk
0:00:22.9]} 30... Bd5 {[%clk 0:00:13]} 31. Qb5 {[%clk 0:00:14.6]} 31... Qe6
{[%clk 0:00:06.8]} 32. Qb4 {[%clk 0:00:11.7]} 32... Kf7 {[%clk 0:00:05.3]} 33.
Qxd4 {[%clk 0:00:10.4]} 33... Qe1+ {[%clk 0:00:04.5]} 34. Kh2 {[%clk 0:00:10.4]}
34... Qe6 {[%clk 0:00:04.7]} 35. Qf4+ {[%clk 0:00:09.7]} 35... Kg8 {[%clk
0:00:04.3]} 36. Qe3 {[%clk 0:00:08.4]} 36... Qd6+ {[%clk 0:00:04.4]} 37. f4
{[%clk 0:00:08.3]} 37... b5 {[%clk 0:00:04.1]} 38. Qe5 {[%clk 0:00:08.6]} 38...
Qc6 {[%clk 0:00:03.4]} 39. Qd4 {[%clk 0:00:07.9]} 39... Bxg2 {[%clk 0:00:02.7]}
40. Qd8+ {[%clk 0:00:07.9]} 40... Kf7 {[%clk 0:00:03.2]} 41. Qd4 {[%clk
0:00:04.8]} 41... Bh1 {[%clk 0:00:02.2]} 42. Qf2 {[%clk 0:00:04.3]} 42... Bd5
{[%clk 0:00:01.3]} 43. f5 {[%clk 0:00:04.6]} 43... b4 {[%clk 0:00:01.5]} 44. Qg3
{[%clk 0:00:05.5]} 1-0

[Event "Early-Titled-Tuesday-Blitz-September-05-2023"]
[Site "Chess.com"]
[Date "2023.09.05"]
[Round "3"]
[White "Grossboss19"]
[Black "NowInChess"]
[Result "1-0"]
[WhiteElo "2488"]
[BlackElo "2263"]
[TimeControl "180+1"]
[EndTime "8:28:11 PDT"]
[Termination "Grossboss19 won on time"]

1. a3 {[%clk 0:02:56.4]} 1... g6 {[%clk 0:02:58.7]} 2. Nf3 {[%clk 0:02:55.2]}
2... Bg7 {[%clk 0:02:58.9]} 3. c4 {[%clk 0:02:54.7]} 3... e5 {[%clk 0:02:52.3]}
4. Nc3 {[%clk 0:02:45.6]} 4... d6 {[%clk 0:02:51.4]} 5. g3 {[%clk 0:02:45.9]}
5... f5 {[%clk 0:02:51.4]} 6. Bg2 {[%clk 0:02:46.1]} 6... Nf6 {[%clk 0:02:52]}
7. O-O {[%clk 0:02:46.2]} 7... O-O {[%clk 0:02:52.5]} 8. d3 {[%clk 0:02:45.8]}
8... c6 {[%clk 0:02:39.7]} 9. Nd2 {[%clk 0:02:43]} 9... Be6 {[%clk 0:02:38.9]}
10. b4 {[%clk 0:02:41.4]} 10... d5 {[%clk 0:02:38.3]} 11. Bb2 {[%clk 0:02:29.8]}
11... d4 {[%clk 0:02:36.3]} 12. Na4 {[%clk 0:02:29.2]} 12... Nbd7 {[%clk
0:02:07.6]} 13. e3 {[%clk 0:02:20.5]} 13... dxe3 {[%clk 0:02:06.2]} 14. fxe3
{[%clk 0:02:20.6]} 14... Qc7 {[%clk 0:01:53.5]} 15. Qe2 {[%clk 0:02:13.2]} 15...
Rad8 {[%clk 0:01:46.9]} 16. Rad1 {[%clk 0:02:02.1]} 16... Ng4 {[%clk 0:01:32.8]}
17. h3 {[%clk 0:01:51]} 17... Ngf6 {[%clk 0:01:31.9]} 18. e4 {[%clk 0:01:46.4]}
18... Nh5 {[%clk 0:01:20.5]} 19. Rf3 {[%clk 0:01:24.8]} 19... f4 {[%clk
0:01:15.8]} 20. g4 {[%clk 0:01:23.8]} 20... Ng3 {[%clk 0:01:14.6]} 21. Qf2
{[%clk 0:01:24.2]} 21... h5 {[%clk 0:01:05.1]} 22. gxh5 {[%clk 0:00:44]} 22...
gxh5 {[%clk 0:01:06]} 23. d4 {[%clk 0:00:24]} 23... h4 {[%clk 0:00:53.9]} 24. d5
{[%clk 0:00:20.5]} 24... Bf7 {[%clk 0:00:50.9]} 25. c5 {[%clk 0:00:16.6]} 25...
cxd5 {[%clk 0:00:45.9]} 26. exd5 {[%clk 0:00:16.9]} 26... Bxd5 {[%clk
0:00:44.4]} 27. Rd3 {[%clk 0:00:17.3]} 27... Bc6 {[%clk 0:00:30.9]} 28. Nc3
{[%clk 0:00:14.8]} 28... Nf6 {[%clk 0:00:21.5]} 29. Nc4 {[%clk 0:00:13]} 29...
e4 {[%clk 0:00:09.2]} 30. Rxd8 {[%clk 0:00:11.9]} 30... Rxd8 {[%clk 0:00:09.2]}
31. Rxd8+ {[%clk 0:00:10.4]} 31... Qxd8 {[%clk 0:00:10.1]} 32. Qxf4 {[%clk
0:00:07.3]} 32... Qd4+ {[%clk 0:00:10.2]} 33. Ne3 {[%clk 0:00:05.8]} 33... Ne2+
{[%clk 0:00:08]} 34. Nxe2 {[%clk 0:00:05.3]} 34... Qxb2 {[%clk 0:00:08.3]} 35.
Qf2 {[%clk 0:00:04]} 35... Qb1+ {[%clk 0:00:07.9]} 36. Kh2 {[%clk 0:00:04]}
36... Qd3 {[%clk 0:00:04.9]} 37. Nf4 {[%clk 0:00:04]} 37... Qd7 {[%clk
0:00:03.5]} 38. Ne2 {[%clk 0:00:02.7]} 38... Qe7 {[%clk 0:00:03.1]} 39. Nf5
{[%clk 0:00:03]} 39... Qe5+ {[%clk 0:00:03.1]} 40. Qf4 {[%clk 0:00:03.6]} 40...
Qxf4+ {[%clk 0:00:02.8]} 41. Nxf4 {[%clk 0:00:04.5]} 41... e3 {[%clk 0:00:03.1]}
42. Nxe3 {[%clk 0:00:04.3]} 42... Bxg2 {[%clk 0:00:01.8]} 43. Kxg2 {[%clk
0:00:05.2]} 43... Ne4 {[%clk 0:00:02.1]} 44. Kf3 {[%clk 0:00:05.3]} 44... Nc3
{[%clk 0:00:02.2]} 45. Nc2 {[%clk 0:00:05.2]} 45... Nb5 {[%clk 0:00:02.7]} 46.
Ne6 {[%clk 0:00:05.1]} 46... Nc3 {[%clk 0:00:02.3]} 47. Nd8 {[%clk 0:00:04.7]}
47... b6 {[%clk 0:00:01.3]} 48. c6 {[%clk 0:00:04.5]} 48... Be5 {[%clk
0:00:01.6]} 49. Ne6 {[%clk 0:00:04.8]} 49... Bd6 {[%clk 0:00:01.5]} 50. c7
{[%clk 0:00:05]} 1-0

[Event "Early-Titled-Tuesday-Blitz-September-05-2023"]
[Site "Chess.com"]
[Date "2023.09.05"]
[Round "3"]
[White "tteshan"]
[Black "KatakuriDono"]
[Result "1-0"]
[WhiteElo "2566"]
[BlackElo "2320"]
[TimeControl "180+1"]
[EndTime "8:28:12 PDT"]
[Termination "tteshan won by resignation"]

1. e4 {[%clk 0:03:00.9]} 1... e5 {[%clk 0:03:00]} 2. Nf3 {[%clk 0:03:00.8]} 2...
Nc6 {[%clk 0:03:00.2]} 3. Bb5 {[%clk 0:03:01.5]} 3... a6 {[%clk 0:03:00.4]} 4.
Ba4 {[%clk 0:03:01.9]} 4... Nf6 {[%clk 0:03:00.7]} 5. O-O {[%clk 0:03:02]} 5...
Be7 {[%clk 0:03:00.7]} 6. Re1 {[%clk 0:03:02.1]} 6... b5 {[%clk 0:03:00.9]} 7.
Bb3 {[%clk 0:03:02.4]} 7... d6 {[%clk 0:03:01.4]} 8. c3 {[%clk 0:03:02.2]} 8...
O-O {[%clk 0:03:01.1]} 9. h3 {[%clk 0:03:02.9]} 9... Na5 {[%clk 0:03:01.6]} 10.
Bc2 {[%clk 0:03:02.8]} 10... c5 {[%clk 0:03:02.2]} 11. d3 {[%clk 0:02:59.3]}
11... Re8 {[%clk 0:03:00.3]} 12. Nbd2 {[%clk 0:02:58.7]} 12... Bf8 {[%clk
0:03:00.4]} 13. Nf1 {[%clk 0:02:58.9]} 13... d5 {[%clk 0:02:55.7]} 14. exd5
{[%clk 0:02:52.1]} 14... Qxd5 {[%clk 0:02:55]} 15. Bg5 {[%clk 0:02:41.6]} 15...
Nd7 {[%clk 0:02:36.2]} 16. d4 {[%clk 0:02:23.8]} 16... cxd4 {[%clk 0:02:31.2]}
17. Be4 {[%clk 0:02:20.6]} 17... Qd6 {[%clk 0:02:17.2]} 18. Bxa8 {[%clk
0:02:19.9]} 18... h6 {[%clk 0:02:11.7]} 19. Bh4 {[%clk 0:02:18.4]} 19... d3
{[%clk 0:02:01.2]} 20. Be4 {[%clk 0:02:16]} 20... Nc5 {[%clk 0:02:01.4]} 21. b4
{[%clk 0:02:00.6]} 21... Nxe4 {[%clk 0:02:00.2]} 22. Rxe4 {[%clk 0:02:01.5]}
22... Nc4 {[%clk 0:01:56]} 23. N1d2 {[%clk 0:01:56.4]} 23... Bb7 {[%clk
0:01:42.1]} 24. Nxc4 {[%clk 0:01:55]} 24... bxc4 {[%clk 0:01:42.5]} 25. Rxc4
{[%clk 0:01:55.3]} 25... e4 {[%clk 0:01:43.1]} 26. Rd4 {[%clk 0:01:43.7]} 26...
Qg6 {[%clk 0:01:21.2]} 27. Ne1 {[%clk 0:01:42]} 27... a5 {[%clk 0:01:15.6]} 28.
Bg3 {[%clk 0:01:34.6]} 28... axb4 {[%clk 0:01:14.3]} 29. cxb4 {[%clk 0:01:35.5]}
29... f5 {[%clk 0:01:09.3]} 30. a4 {[%clk 0:01:25.1]} 30... Qf6 {[%clk
0:01:08.8]} 31. Rc4 {[%clk 0:01:17.7]} 31... f4 {[%clk 0:01:07.3]} 32. Bh2
{[%clk 0:01:17.1]} 32... f3 {[%clk 0:00:59.7]} 33. gxf3 {[%clk 0:01:13]} 33...
exf3 {[%clk 0:00:57.4]} 34. Rf4 {[%clk 0:00:49.4]} 34... Qc3 {[%clk 0:00:40]}
35. Nxf3 {[%clk 0:00:36.5]} 35... Bxb4 {[%clk 0:00:32.4]} 36. Rb1 {[%clk
0:00:29.7]} 36... d2 {[%clk 0:00:28.9]} 37. Nxd2 {[%clk 0:00:15.2]} 37... Qc6
{[%clk 0:00:20.1]} 38. Nf3 {[%clk 0:00:12.2]} 38... Bd6 {[%clk 0:00:19.3]} 39.
Qb3+ {[%clk 0:00:08.9]} 39... Kh8 {[%clk 0:00:19.3]} 40. Qxb7 {[%clk 0:00:08.1]}
40... Qc2 {[%clk 0:00:19]} 41. Qb3 {[%clk 0:00:06.6]} 41... Qg6+ {[%clk
0:00:17.9]} 42. Rg4 {[%clk 0:00:06.8]} 42... Qf6 {[%clk 0:00:17.8]} 43. Bxd6
{[%clk 0:00:06.8]} 43... Qxd6 {[%clk 0:00:18.7]} 44. Qc2 {[%clk 0:00:06.1]}
44... Rf8 {[%clk 0:00:16.4]} 45. Kg2 {[%clk 0:00:06.4]} 45... Qf6 {[%clk
0:00:16.2]} 46. Rb3 {[%clk 0:00:06.9]} 46... h5 {[%clk 0:00:16.1]} 47. Rg3
{[%clk 0:00:07.2]} 47... h4 {[%clk 0:00:14.8]} 48. Rg4 {[%clk 0:00:07.5]} 48...
Rd8 {[%clk 0:00:12.1]} 49. Qg6 {[%clk 0:00:07.8]} 49... Rd6 {[%clk 0:00:10.9]}
50. Rxh4+ {[%clk 0:00:07.9]} 50... Kg8 {[%clk 0:00:10.2]} 51. Qxf6 {[%clk
0:00:08]} 51... gxf6 {[%clk 0:00:09.3]} 52. Rg4+ {[%clk 0:00:08.6]} 52... Kf7
{[%clk 0:00:09.6]} 53. a5 {[%clk 0:00:09.5]} 53... Rd1 {[%clk 0:00:08.9]} 54.
Rb7+ {[%clk 0:00:09.9]} 1-0

[Event "Early-Titled-Tuesday-Blitz-September-05-2023"]
[Site "Chess.com"]
[Date "2023.09.05"]
[Round "3"]
[White "PavelChernomordik"]
[Black "Zhani-Z"]
[Result "1-0"]
[WhiteElo "2510"]
[BlackElo "2288"]
[TimeControl "180+1"]
[EndTime "8:28:16 PDT"]
[Termination "PavelChernomordik won by resignation"]

1. e4 {[%clk 0:03:00.9]} 1... c5 {[%clk 0:02:57.9]} 2. Nc3 {[%clk 0:03:00.3]}
2... e6 {[%clk 0:02:55.9]} 3. f4 {[%clk 0:03:00]} 3... d5 {[%clk 0:02:54.3]} 4.
Nf3 {[%clk 0:02:59.1]} 4... dxe4 {[%clk 0:02:52.4]} 5. Bb5+ {[%clk 0:02:58.4]}
5... Bd7 {[%clk 0:02:50.8]} 6. Bxd7+ {[%clk 0:02:58.2]} 6... Qxd7 {[%clk
0:02:48.7]} 7. Ne5 {[%clk 0:02:57.7]} 7... Qd8 {[%clk 0:02:38.3]} 8. Nxe4 {[%clk
0:02:50.2]} 8... Nh6 {[%clk 0:02:29]} 9. Qe2 {[%clk 0:02:46.7]} 9... Nd7 {[%clk
0:02:24]} 10. d3 {[%clk 0:02:36.5]} 10... Be7 {[%clk 0:02:18.7]} 11. Bd2 {[%clk
0:02:32.8]} 11... Nf5 {[%clk 0:02:11.6]} 12. c3 {[%clk 0:02:26.9]} 12... Nxe5
{[%clk 0:02:02]} 13. fxe5 {[%clk 0:02:26.2]} 13... Qd5 {[%clk 0:02:01.4]} 14.
Bf4 {[%clk 0:01:55.6]} 14... O-O-O {[%clk 0:01:54.2]} 15. Rd1 {[%clk 0:01:50.1]}
15... g5 {[%clk 0:01:47.3]} 16. Nxg5 {[%clk 0:01:45.6]} 16... Bxg5 {[%clk
0:01:45]} 17. Bxg5 {[%clk 0:01:44.8]} 17... Rdg8 {[%clk 0:01:45.1]} 18. Bf6
{[%clk 0:01:33]} 18... Rxg2 {[%clk 0:01:44]} 19. Qe4 {[%clk 0:01:27.1]} 19...
Rhg8 {[%clk 0:01:33.2]} 20. Rd2 {[%clk 0:01:15]} 20... Rxd2 {[%clk 0:01:27.2]}
21. Kxd2 {[%clk 0:01:12.9]} 21... Rg2+ {[%clk 0:01:26.1]} 22. Kc1 {[%clk
0:01:12.5]} 22... Qxe4 {[%clk 0:01:19.3]} 23. dxe4 {[%clk 0:01:12.2]} 23... Ne3
{[%clk 0:01:19.7]} 24. Re1 {[%clk 0:00:58]} 24... Ng4 {[%clk 0:01:08.6]} 25. Rd1
{[%clk 0:00:46.6]} 25... Nxf6 {[%clk 0:00:57.7]} 26. exf6 {[%clk 0:00:46.1]}
26... Rxh2 {[%clk 0:00:57.7]} 27. Rg1 {[%clk 0:00:40.3]} 27... Rh6 {[%clk
0:00:43.2]} 28. e5 {[%clk 0:00:38.1]} 28... Rh5 {[%clk 0:00:36]} 29. Rg7 {[%clk
0:00:34.7]} 29... Rxe5 {[%clk 0:00:32.4]} 30. Rxh7 {[%clk 0:00:24.7]} 30... Rf5
{[%clk 0:00:23.5]} 31. Rxf7 {[%clk 0:00:22.9]} 31... e5 {[%clk 0:00:23.7]} 32.
Kd2 {[%clk 0:00:21.2]} 32... Rf2+ {[%clk 0:00:12.7]} 33. Ke3 {[%clk 0:00:20]}
33... Rxb2 {[%clk 0:00:12.6]} 34. Rf8+ {[%clk 0:00:14.2]} 34... Kd7 {[%clk
0:00:12.5]} 35. Ke4 {[%clk 0:00:10.9]} 35... Re2+ {[%clk 0:00:12]} 36. Kd5
{[%clk 0:00:10.6]} 36... Rxa2 {[%clk 0:00:06.6]} 37. Rf7+ {[%clk 0:00:10]} 37...
Ke8 {[%clk 0:00:04.5]} 38. Rxb7 {[%clk 0:00:09.9]} 38... e4 {[%clk 0:00:03.9]}
39. Ke6 {[%clk 0:00:08.7]} 39... Kd8 {[%clk 0:00:02.7]} 40. f7 {[%clk
0:00:08.2]} 40... Rf2 {[%clk 0:00:02.6]} 41. Rb8+ {[%clk 0:00:08]} 41... Kc7
{[%clk 0:00:03]} 42. f8=Q {[%clk 0:00:08.5]} 42... Rxf8 {[%clk 0:00:03.5]} 43.
Rxf8 {[%clk 0:00:08.9]} 43... e3 {[%clk 0:00:03.9]} 44. Rf1 {[%clk 0:00:09]}
44... a5 {[%clk 0:00:03.1]} 45. Kd5 {[%clk 0:00:09]} 45... a4 {[%clk 0:00:02.7]}
46. Kxc5 {[%clk 0:00:08.7]} 1-0